bitfinex-derivatives/quotes_BTCF0:USTF0_20240814
["timestamp","ask_amount","ask_price","bid_price","bid_amount"]
[1723673221311,2.74359006,58671.0,58670.0,6.3e-07]
[1723673221517,0.085254,58639.0,58638.0,0.3608]
[1723673221718,0.085256,58638.0,58637.0,0.06771192]
[1723673221916,1.390912,58638.0,58637.0,0.06771192]
[1723673222215,0.255774,58636.0,58635.0,8.7e-07]
[1723673222412,0.255774,58636.0,58616.0,0.3608]
[1723673222413,0.085273,58626.0,58616.0,0.3608]
[1723673222616,0.085273,58626.0,58622.0,0.085279]
[1723673222617,0.704073,58626.0,58622.0,0.085279]
[1723673222814,0.6188,58626.0,58623.0,0.085276]
[1723673223328,0.61891992,58626.0,58623.0,0.085276]
[1723673223532,0.36091992,58626.0,58625.0,0.085274]
[1723673224626,0.3608,58636.0,58625.0,0.91172]
[1723673224827,0.3608,58636.0,58635.0,0.08526]
[1723673225635,0.36095501,58636.0,58635.0,0.08526]
[1723673225928,0.36095501,58636.0,58626.0,0.1437]
[1723673226128,0.00015501,58636.0,58635.0,0.08526]
[1723673228039,0.3216,58648.0,58635.0,0.08526]
[1723673228040,0.3608,58656.0,58655.0,0.170462]
[1723673228233,0.3608,58656.0,58655.0,0.085231]
[1723673229331,0.3608,58656.0,58650.0,0.36105586]
[1723673229537,0.3608,58656.0,58653.0,0.085233]
[1723673229832,0.3608,58656.0,58650.0,0.36105586]
[1723673230231,0.3608,58656.0,58654.0,0.085232]
[1723673230424,0.3608,58656.0,58655.0,0.085231]
[1723673230626,0.3608,58656.0,58650.0,0.44629386]
[1723673231033,0.3618,58656.0,58650.0,0.45429386]
[1723673231426,0.3618,58656.0,58650.0,0.36905586]
[1723673231427,0.170474,58651.0,58650.0,0.36905586]
[1723673231735,0.531274,58651.0,58650.0,0.00825586]
[1723673231931,1.552794,58651.0,58650.0,0.00825586]
[1723673233134,1.467557,58651.0,58650.0,0.00825586]
[1723673233324,1.072557,58651.0,58650.0,0.00025586]
[1723673233524,1.557794,58651.0,58650.0,0.00025586]
[1723673233733,1.557794,58651.0,58650.0,8.6e-07]
[1723673233734,1.643031,58651.0,58650.0,8.6e-07]
[1723673234234,2.588768,58651.0,58650.0,8.6e-07]
[1723673235434,0.085285,58618.0,58616.0,0.3608]
[1723673235642,0.085285,58618.0,58609.0,0.3608]
[1723673235937,0.597085,58618.0,58609.0,0.3608]
[1723673236530,0.597085,58618.0,58594.0,0.11831732]
[1723673236531,0.17061,58604.0,58594.0,0.11831732]
[1723673236728,0.085312,58599.0,58594.0,0.11831732]
[1723673236935,0.446112,58599.0,58594.0,0.11831732]
[1723673237943,1.443384,58599.0,58594.0,0.11831732]
[1723673238143,1.543384,58599.0,58594.0,0.11831732]
[1723673239543,1.459072,58599.0,58598.0,0.18332409]
[1723673239933,1.544384,58599.0,58598.0,0.18332409]
[1723673240346,1.551384,58599.0,58598.0,0.17032409]
[1723673240737,1.551384,58599.0,58598.0,0.06172909]
[1723673240941,1.451384,58599.0,58598.0,9e-08]
[1723673241243,0.170628,58598.0,58597.0,1.4e-07]
[1723673241544,0.802588,58598.0,58597.0,1.4e-07]
[1723673241741,0.37120001,58599.0,58598.0,0.085314]
[1723673242051,0.36093991,58599.0,58598.0,0.997274]
[1723673242259,0.00513991,58599.0,58598.0,1.243974]
[1723673242459,0.00513991,58599.0,58598.0,0.843974]
[1723673242753,0.04977574,58614.0,58613.0,0.085292]
[1723673242962,0.04977574,58614.0,58613.0,0.446092]
[1723673243151,0.13506574,58614.0,58613.0,0.3608]
[1723673243852,0.04977574,58614.0,58613.0,0.446092]
[1723673245355,0.04977574,58614.0,58613.0,0.447092]
[1723673246248,0.04977574,58614.0,58613.0,0.3608]
[1723673246953,0.00025586,58619.0,58617.0,0.085286]
[1723673247160,0.12025586,58619.0,58618.0,0.3608]
[1723673247454,0.12025586,58619.0,58618.0,0.446085]
[1723673247646,0.00025586,58619.0,58618.0,0.446085]
[1723673247849,0.06634096,58649.0,58618.0,0.446085]
[1723673247850,0.085256,58638.0,58618.0,1.4126]
[1723673248049,0.085256,58638.0,58624.0,0.446075]
[1723673248050,0.105256,58638.0,58624.0,0.446075]
[1723673248558,0.105256,58638.0,58625.0,0.085274]
[1723673248760,0.085269,58629.0,58625.0,0.085274]
[1723673249055,0.085292,58613.0,58612.0,0.3608]
[1723673249252,0.085285,58618.0,58612.0,0.3608]
[1723673249447,0.3009,58621.0,58617.0,0.446086]
[1723673249755,0.30115586,58621.0,58615.0,0.00025586]
[1723673249953,0.085288,58616.0,58615.0,0.00025586]
[1723673250261,0.170608,58605.0,58604.0,0.3608]
[1723673250559,0.085312,58599.0,58598.0,0.3608]
[1723673251163,0.170628,58598.0,58588.0,0.15207033]
[1723673251352,1.192588,58598.0,58593.0,0.00025586]
[1723673251669,1.107274,58598.0,58593.0,0.00025586]
[1723673251957,0.195314,58598.0,58593.0,0.00025586]
[1723673252354,0.195314,58598.0,58597.0,0.00100014]
[1723673252554,0.11,58598.0,58597.0,0.44711514]
[1723673252959,0.085314,58598.0,58597.0,0.36180014]
[1723673253157,0.00025586,58604.0,58597.0,0.36180014]
[1723673253358,0.12025586,58604.0,58603.0,0.3608]
[1723673253662,0.12025586,58604.0,58603.0,0.446106]
[1723673253663,0.00025586,58604.0,58603.0,0.446106]
[1723673254557,0.00025586,58604.0,58603.0,0.3608]
[1723673255065,0.08556086,58604.0,58603.0,0.3608]
[1723673255464,0.28586586,58604.0,58603.0,0.3608]
[1723673255665,0.085314,58598.0,58597.0,1.4e-07]
[1723673257271,0.997274,58598.0,58597.0,1.4e-07]
[1723673257565,1.192588,58598.0,58597.0,1.4e-07]
[1723673257756,1.192588,58598.0,58597.0,0.00600014]
[1723673258161,1.107274,58598.0,58597.0,0.00600014]
[1723673258359,0.195314,58598.0,58597.0,1.4e-07]
[1723673258566,0.195314,58598.0,58597.0,0.00100014]
[1723673259458,0.556114,58598.0,58597.0,0.00100014]
[1723673260356,0.556114,58598.0,58597.0,0.00074514]
[1723673260357,1.192588,58598.0,58597.0,0.00074514]
[1723673260556,0.280628,58598.0,58597.0,0.00074514]
[1723673260858,1.192588,58598.0,58597.0,0.00074514]
[1723673261162,0.195314,58598.0,58597.0,0.00074514]
[1723673262268,0.195314,58598.0,58597.0,0.08606014]
[1723673262269,0.11,58598.0,58597.0,0.08606014]
[1723673262664,0.00025586,58604.0,58597.0,0.00074514]
[1723673262864,0.3608,58622.0,58603.0,0.446106]
[1723673263164,0.3708,58619.0,58612.0,0.3608]
[1723673263371,0.01,58619.0,58618.0,0.3608]
[1723673264057,0.01,58619.0,58618.0,0.446085]
[1723673264260,0.30115586,58624.0,58622.0,0.085278]
[1723673264462,0.13025586,58624.0,58623.0,0.446077]
[1723673266965,0.13025586,58624.0,58623.0,0.3638]
[1723673267270,0.085283,58619.0,58613.0,0.05107554]
[1723673267464,0.17058,58614.0,58613.0,0.05107554]
[1723673267770,0.085296,58610.0,58609.0,0.3608]
[1723673267970,0.570592,58610.0,58609.0,0.3608]
[1723673268161,1.082472,58610.0,58609.0,0.3608]
[1723673268361,0.997176,58610.0,58609.0,0.3608]
[1723673268565,0.597176,58610.0,58609.0,0.3608]
[1723673268762,1.182472,58610.0,58609.0,0.3608]
[1723673268959,0.185296,58610.0,58609.0,0.3608]
[1723673269173,0.697176,58610.0,58609.0,0.3608]
[1723673269970,0.697176,58610.0,58605.0,0.44549946]
[1723673269971,0.170604,58606.0,58605.0,0.08469946]
[1723673270174,0.365906,58606.0,58605.0,4.6e-07]
[1723673270366,0.51192,58605.0,58601.0,0.10163936]
[1723673270567,0.832316,58602.0,58601.0,0.10163936]
[1723673270766,0.942316,58602.0,58601.0,0.10163936]
[1723673270967,1.854236,58602.0,58601.0,0.10163936]
[1723673271265,1.768928,58602.0,58601.0,0.10163936]
[1723673271576,1.854236,58602.0,58601.0,0.10163936]
[1723673271775,1.855236,58602.0,58601.0,0.10163936]
[1723673272072,1.769928,58602.0,58601.0,0.10163936]
[1723673273574,0.858008,58602.0,58601.0,0.10163936]
[1723673274572,0.111,58602.0,58601.0,0.10163936]
[1723673274773,0.001,58602.0,58601.0,0.10163936]
[1723673276377,0.0853,58608.0,58602.0,0.085308]
[1723673276575,0.0853,58608.0,58607.0,0.3608]
[1723673276775,0.1953,58608.0,58607.0,0.3608]
[1723673277072,0.1,58608.0,58607.0,0.3608]
[1723673277579,0.185299,58608.0,58607.0,0.3608]
[1723673277971,0.191299,58608.0,58607.0,0.3618]
[1723673278774,0.106,58608.0,58607.0,0.447101]
[1723673279277,0.191299,58608.0,58607.0,0.3618]
[1723673279465,0.185299,58608.0,58607.0,0.3608]
[1723673279670,0.190299,58608.0,58607.0,0.3608]
[1723673279967,0.105,58608.0,58607.0,0.3608]
[1723673280163,0.105,58608.0,58607.0,0.446101]
[1723673280666,0.104,58608.0,58607.0,0.446101]
[1723673280861,0.406869,58629.0,58608.0,0.51188]
[1723673281076,0.506869,58629.0,58628.0,0.3608]
[1723673281277,0.085269,58629.0,58628.0,0.3608]
[1723673282271,0.1,58629.0,58611.0,0.3608]
[1723673282464,0.08529,58614.0,58613.0,0.06780803]
[1723673282668,0.29058,58614.0,58613.0,0.06775578]
[1723673283068,0.20529,58614.0,58613.0,0.06775578]
[1723673283375,0.29058,58614.0,58613.0,0.06775578]
[1723673283570,0.170586,58612.0,58611.0,0.3608]
[1723673283878,0.280586,58612.0,58611.0,0.3608]
[1723673284880,0.280586,58612.0,58611.0,0.34725409]
[1723673285571,0.877719,58612.0,58611.0,0.34725409]
[1723673285773,1.277719,58612.0,58611.0,0.34725409]
[1723673285968,0.366879,58612.0,58611.0,0.34725409]
[1723673286770,0.085298,58609.0,58608.0,0.00025586]
[1723673286969,0.195298,58609.0,58608.0,0.00025586]
[1723673287175,0.001,58612.0,58611.0,0.085295]
[1723673287378,0.001,58612.0,58611.0,0.446095]
[1723673287578,0.001,58612.0,58611.0,0.957935]
[1723673287876,0.001,58612.0,58611.0,0.3608]
[1723673288181,0.111,58612.0,58611.0,0.3608]
[1723673288576,0.111,58612.0,58611.0,1.357935]
[1723673288882,0.11,58612.0,58611.0,1.357935]
[1723673289081,0.11,58612.0,58611.0,0.957935]
[1723673289681,0.11,58612.0,58611.0,1.361935]
[1723673289872,0.11,58612.0,58611.0,0.961935]
[1723673290280,0.195293,58612.0,58611.0,0.3648]
[1723673290575,0.196293,58612.0,58611.0,0.3708]
[1723673292681,0.196293,58612.0,58611.0,0.3608]
[1723673292682,0.195293,58612.0,58611.0,0.3608]
[1723673292982,0.195293,58612.0,58611.0,0.3648]
[1723673293482,0.11,58612.0,58611.0,1.527935]
[1723673293681,0.11,58612.0,58611.0,1.533935]
[1723673294783,0.17,58618.0,58617.0,0.085286]
[1723673294973,0.55020001,58640.0,58623.0,0.085276]
[1723673295173,0.04,58640.0,58639.0,0.446054]
[1723673295385,0.125253,58640.0,58639.0,0.3608]
[1723673296282,0.00025586,58645.0,58640.0,0.085252]
[1723673296581,0.00025586,58645.0,58639.0,0.7216]
[1723673296582,0.19550086,58645.0,58644.0,0.3608]
[1723673297875,1.46786086,58645.0,58639.0,0.001]
[1723673298082,0.25578,58635.0,58634.0,0.00025586]
[1723673298287,0.085262,58634.0,58621.0,0.08528]
[1723673298482,0.085264,58632.0,58621.0,0.08528]
[1723673298684,0.13,58632.0,58622.0,0.085279]
[1723673298892,0.085271,58628.0,58623.0,0.085277]
[1723673299090,0.12,58628.0,58626.0,0.085273]
[1723673299277,0.12,58628.0,58627.0,0.085271]
[1723673299991,0.12,58628.0,58627.0,0.996991]
[1723673300186,0.12,58628.0,58627.0,1.146991]
[1723673301193,0.12,58628.0,58627.0,0.746991]
[1723673301686,0.12,58628.0,58627.0,1.146991]
[1723673301883,0.12,58628.0,58627.0,0.746991]
[1723673302288,0.12,58628.0,58627.0,1.146991]
[1723673302491,0.12,58628.0,58627.0,0.746991]
[1723673302697,0.12,58628.0,58627.0,1.150991]
[1723673303278,0.16,58634.0,58628.0,0.51168]
[1723673303487,0.01225586,58634.0,58633.0,0.531326]
[1723673303693,0.085239,58650.0,58637.0,0.085256]
[1723673303991,0.085239,58650.0,58648.0,0.3608]
[1723673303992,0.205239,58650.0,58648.0,0.3608]
[1723673304487,0.085247,58644.0,58643.0,0.00025586]
[1723673304697,0.538394,58644.0,58643.0,0.00025586]
[1723673304885,0.085261,58634.0,58633.0,0.3608]
[1723673305085,0.175261,58634.0,58633.0,0.3608]
[1723673308693,0.433161,58634.0,58633.0,0.3608]
[1723673308887,0.436161,58634.0,58630.0,0.085266]
[1723673309693,0.436161,58634.0,58628.0,0.00025586]
[1723673309694,0.433161,58634.0,58631.0,0.085265]
[1723673309878,0.436161,58634.0,58631.0,0.085265]
[1723673310284,0.093,58634.0,58631.0,0.17]
[1723673310488,0.093,58634.0,58633.0,0.446063]
[1723673310489,0.09,58634.0,58633.0,0.446063]
[1723673310793,0.09,58634.0,58633.0,0.606063]
[1723673310993,0.09,58634.0,58633.0,1.517703]
[1723673311489,0.3608,58648.0,58634.0,0.51164]
[1723673311692,0.04,58646.0,58645.0,0.085245]
[1723673311889,0.04,58646.0,58645.0,0.255245]
[1723673312292,0.04,58646.0,58645.0,1.166805]
[1723673313585,0.125244,58646.0,58645.0,1.167805]
[1723673313788,0.125244,58646.0,58645.0,1e-06]
[1723673313789,0.571288,58646.0,58645.0,1e-06]
[1723673314097,0.085259,58636.0,58633.0,0.3608]
[1723673314295,0.09,58636.0,58634.0,0.08526]
[1723673314503,0.09,58636.0,58634.0,0.24526]
[1723673314801,0.09,58636.0,58634.0,1.1569]
[1723673314998,0.09,58636.0,58634.0,0.16]
[1723673315296,0.085261,58634.0,58633.0,0.3608]
[1723673315498,0.330522,58634.0,58633.0,0.3608]
[1723673315894,0.503161,58634.0,58633.0,0.3608]
[1723673316290,1.29034,58634.0,58618.0,0.3608]
[1723673316595,0.085279,58622.0,58618.0,0.3608]
[1723673316785,0.255279,58622.0,58618.0,0.3608]
[1723673317088,0.085284,58619.0,58614.0,0.0849384]
[1723673317295,0.2579,58615.0,58614.0,0.0849384]
[1723673317503,0.4079,58615.0,58614.0,0.00018744]
[1723673317987,0.235289,58615.0,58614.0,0.00018744]
[1723673319395,0.235289,58615.0,58614.0,0.01318744]
[1723673319899,0.15,58615.0,58614.0,0.01318744]
[1723673320196,0.15,58615.0,58614.0,0.09847744]
[1723673321988,0.235289,58615.0,58614.0,0.01318744]
[1723673322295,0.085293,58612.0,58611.0,0.00025586]
[1723673322499,0.616093,58612.0,58611.0,0.00025586]
[1723673323093,0.36105586,58622.0,58611.0,0.00025586]
[1723673323295,0.3608,58615.0,58611.0,0.00025586]
[1723673323489,0.085293,58612.0,58611.0,0.00025586]
[1723673323702,0.255293,58612.0,58611.0,0.00025586]
[1723673324194,0.17,58612.0,58611.0,0.00025586]
[1723673324399,0.17,58612.0,58611.0,0.08555086]
[1723673325295,0.171,58612.0,58611.0,0.09655086]
[1723673325491,0.256293,58612.0,58611.0,0.01125586]
[1723673326798,0.255293,58612.0,58611.0,0.00025586]
[1723673327091,0.256293,58612.0,58611.0,0.00025586]
[1723673327291,0.171,58612.0,58611.0,0.08555086]
[1723673327709,0.171,58612.0,58611.0,0.44635086]
[1723673328005,0.171,58612.0,58611.0,0.08555086]
[1723673328419,0.171,58612.0,58611.0,0.09155086]
[1723673329206,0.171,58612.0,58611.0,0.09255086]
[1723673330007,0.171,58612.0,58611.0,0.09055086]
[1723673330008,0.17,58612.0,58611.0,0.09055086]
[1723673330511,0.17,58612.0,58611.0,0.45135086]
[1723673330809,0.17,58612.0,58611.0,0.60135086]
[1723673332011,0.0634187,58612.0,58611.0,0.68664586]
[1723673332222,0.00015913,58621.0,58620.0,0.170564]
[1723673332510,0.00015913,58621.0,58620.0,0.691364]
[1723673332712,0.00015913,58621.0,58620.0,1.603124]
[1723673333103,9.9e-07,58622.0,58621.0,0.68232]
[1723673333300,9.9e-07,58622.0,58621.0,1.19312]
[1723673333499,9.9e-07,58622.0,58621.0,0.59608]
[1723673333708,9.9e-07,58622.0,58621.0,1.10784]
[1723673333909,9.9e-07,58622.0,58621.0,1.50784]
[1723673334508,9.9e-07,58622.0,58621.0,1.59312]
[1723673335310,9.9e-07,58622.0,58621.0,1.60512]
[1723673335311,0.00100099,58622.0,58621.0,1.60512]
[1723673336011,0.085251,58641.0,58637.0,0.085257]
[1723673336217,0.21673439,58638.0,58637.0,0.085257]
[1723673337220,0.21673439,58638.0,58632.0,0.36105586]
[1723673337221,0.085262,58634.0,58632.0,0.36105586]
[1723673337409,0.235262,58634.0,58632.0,0.36105586]
[1723673338318,0.235262,58634.0,58633.0,0.085263]
[1723673338518,0.15,58634.0,58633.0,0.085263]
[1723673339409,0.151,58634.0,58633.0,0.085263]
[1723673339606,0.085263,58633.0,58632.0,0.00925586]
[1723673339812,0.17,58633.0,58632.0,0.00925586]
[1723673340018,0.255263,58633.0,58632.0,0.00025586]
[1723673340418,0.17,58633.0,58632.0,0.00025586]
[1723673340719,0.17,58633.0,58632.0,0.08551986]
[1723673340916,0.085279,58623.0,58596.0,0.3608]
[1723673341216,0.085315,58597.0,58596.0,0.3608]
[1723673341414,0.16,58597.0,58596.0,0.446115]
[1723673341620,0.16,58597.0,58596.0,0.085315]
[1723673341819,0.16,58597.0,58593.0,0.10165816]
[1723673342115,0.08532,58594.0,58593.0,0.10165816]
[1723673342317,0.22532,58594.0,58593.0,0.10165816]
[1723673342524,0.21232,58594.0,58593.0,0.10165816]
[1723673343519,0.141,58594.0,58593.0,0.47545816]
[1723673343720,0.141,58594.0,58593.0,0.56077916]
[1723673343922,0.226319,58594.0,58593.0,0.47545816]
[1723673344313,0.226319,58594.0,58593.0,0.11465816]
[1723673345020,0.085322,58592.0,58591.0,0.00025586]
[1723673345228,0.245322,58592.0,58591.0,0.00025586]
[1723673346628,0.246322,58592.0,58591.0,0.00025586]
[1723673347116,0.161,58592.0,58591.0,0.00025586]
[1723673347316,0.161,58592.0,58591.0,1.51837986]
[1723673347611,0.161,58592.0,58591.0,0.36105586]
[1723673348019,0.161,58592.0,58591.0,0.44637986]
[1723673348322,0.161,58592.0,58591.0,1.35837986]
[1723673348519,0.246322,58592.0,58591.0,0.00025586]
[1723673348720,0.171644,58592.0,58591.0,0.00025586]
[1723673348911,0.246322,58592.0,58591.0,0.00025586]
[1723673350923,0.246322,58592.0,58591.0,0.00125586]
[1723673351128,0.331644,58592.0,58591.0,0.00125586]
[1723673351323,0.843644,58592.0,58591.0,1e-08]
[1723673351525,0.085343,58578.0,58577.0,0.06770895]
[1723673351725,0.085345,58577.0,58566.0,0.3608]
[1723673351932,0.235345,58577.0,58567.0,0.085358]
[1723673352122,0.085353,58572.0,58567.0,0.085358]
[1723673352321,0.085355,58570.0,58567.0,0.085358]
[1723673352534,0.00018592,58569.0,58567.0,0.085358]
[1723673352736,0.16018592,58569.0,58567.0,0.085358]
[1723673354923,0.24554192,58569.0,58566.0,0.08536]
[1723673355124,0.24654192,58569.0,58567.0,0.085359]
[1723673356734,0.085357,58568.0,58567.0,0.085359]
[1723673356933,0.245357,58568.0,58567.0,0.085359]
[1723673357131,0.00025609,58575.0,58568.0,0.085357]
[1723673357336,0.3608,58592.0,58583.0,0.085335]
[1723673357525,0.3608,58592.0,58574.0,0.3608]
[1723673357526,0.3608,58587.0,58574.0,0.3608]
[1723673357728,0.085345,58577.0,58574.0,0.5208]
[1723673357928,0.085345,58577.0,58575.0,0.51216]
[1723673358128,0.085345,58577.0,58575.0,0.15]
[1723673358442,0.15,58577.0,58576.0,0.51216]
[1723673358646,0.15,58577.0,58576.0,0.225346]
[1723673358941,0.151,58577.0,58576.0,1.137506]
[1723673359334,0.151,58577.0,58576.0,0.085346]
[1723673360248,0.151,58577.0,58574.0,0.3608]
[1723673360544,0.5118,58577.0,58570.0,0.08560909]
[1723673360739,0.085353,58571.0,58570.0,0.08560909]
[1723673361243,0.225353,58571.0,58563.0,0.085365]
[1723673361442,0.08536,58566.0,58564.0,0.085363]
[1723673361650,0.16,58566.0,58565.0,0.085362]
[1723673362642,0.16,58566.0,58565.0,0.225362]
[1723673362840,0.09305981,58566.0,58565.0,0.588162]
[1723673363040,0.001,58566.0,58565.0,1.585764]
[1723673363241,0.00025609,58571.0,58570.0,0.170708]
[1723673363445,9e-08,58571.0,58570.0,1.176862]
[1723673363652,0.085325,58591.0,58570.0,1.176862]
[1723673363653,0.085325,58591.0,58572.0,0.085351]
[1723673363946,0.085326,58590.0,58584.0,0.3608]
[1723673364153,0.235326,58590.0,58584.0,0.3608]
[1723673364349,0.085329,58589.0,58588.0,0.085328]
[1723673364545,0.15,58589.0,58588.0,0.235328]
[1723673364754,0.15,58589.0,58588.0,0.085328]
[1723673366039,0.151,58589.0,58588.0,0.086328]
[1723673370952,0.151,58589.0,58588.0,0.236328]
[1723673372155,0.151,58589.0,58588.0,1.148368]
[1723673372746,0.001,58589.0,58588.0,0.748368]
[1723673373152,0.141,58589.0,58588.0,0.748368]
[1723673373660,0.141,58589.0,58588.0,0.236328]
[1723673375152,0.141,58589.0,58588.0,0.151]
[1723673375359,0.226327,58589.0,58588.0,0.001]
[1723673376250,0.086327,58589.0,58588.0,0.001]
[1723673376554,0.236327,58589.0,58588.0,0.001]
[1723673376755,0.085334,58584.0,58583.0,0.08559009]
[1723673376959,0.245334,58584.0,58583.0,0.25559009]
[1723673377348,0.245334,58584.0,58583.0,0.00025609]
[1723673378358,0.246334,58584.0,58583.0,0.08759209]
[1723673379155,0.161,58584.0,58583.0,0.08759209]
[1723673379455,0.068747,58584.0,58583.0,1.63526691]
[1723673379654,0.001,58584.0,58583.0,1.53329443]
[1723673379863,0.42757477,58604.0,58593.0,0.085321]
[1723673380153,0.06677477,58604.0,58593.0,0.340642]
[1723673380461,7.7e-07,58604.0,58603.0,0.255918]
[1723673380765,7.7e-07,58604.0,58603.0,1.12869943]
[1723673381054,7.7e-07,58604.0,58603.0,2.25909941]
[1723673381260,0.13357314,58632.0,58622.0,0.085279]
[1723673381463,0.13357314,58632.0,58622.0,0.54856527]
[1723673381464,0.21883714,58632.0,58622.0,0.54856527]
[1723673381758,0.00025609,58628.0,58622.0,1.62929038]
[1723673381949,0.00025609,58628.0,58627.0,0.085271]
[1723673382144,0.00025609,58628.0,58627.0,0.824991]
[1723673382364,0.00025609,58628.0,58627.0,0.446071]
[1723673382655,0.00025609,58628.0,58627.0,1.517791]
[1723673383356,0.00025609,58628.0,58627.0,1.70272197]
[1723673383552,0.00025609,58628.0,58627.0,1.60202853]
[1723673384056,0.1502466,58635.0,58634.0,0.085261]
[1723673384358,0.1502466,58635.0,58634.0,0.681322]
[1723673384561,6e-07,58635.0,58634.0,1.592962]
[1723673385356,4.6e-07,58640.0,58639.0,0.170508]
[1723673385557,4.6e-07,58640.0,58639.0,0.596054]
[1723673385865,4.6e-07,58640.0,58639.0,1.507654]
[1723673386162,4.6e-07,58640.0,58639.0,1.196534]
[1723673386654,4.6e-07,58640.0,58639.0,1.596534]
[1723673386857,4.6e-07,58640.0,58639.0,1.746534]
[1723673387251,4.6e-07,58640.0,58639.0,1.346534]
[1723673387770,0.00100046,58640.0,58639.0,1.753534]
[1723673388060,0.00100046,58640.0,58639.0,1.353534]
[1723673388461,0.00100046,58640.0,58639.0,1.753534]
[1723673388852,0.00100046,58640.0,58639.0,1.353534]
[1723673389250,0.00100046,58640.0,58639.0,1.753534]
[1723673390055,0.00100046,58640.0,58639.0,1.353534]
[1723673390256,0.00100046,58640.0,58639.0,1.753534]
[1723673390656,0.00100046,58640.0,58639.0,1.353534]
[1723673390856,0.00100046,58640.0,58639.0,1.753534]
[1723673391249,0.00100046,58640.0,58639.0,1.353534]
[1723673391457,0.17625346,58640.0,58639.0,0.3678]
[1723673391757,0.085266,58631.0,58623.0,0.3608]
[1723673392062,0.085276,58624.0,58623.0,0.3608]
[1723673392650,0.245276,58624.0,58623.0,0.3608]
[1723673394061,0.245276,58624.0,58623.0,0.3618]
[1723673395468,0.246276,58624.0,58623.0,0.3608]
[1723673396669,0.161,58624.0,58623.0,0.446077]
[1723673397868,0.16,58624.0,58623.0,0.446077]
[1723673398170,0.161,58624.0,58623.0,0.446077]
[1723673398558,0.001,58624.0,58623.0,0.691354]
[1723673398759,0.3608,58649.0,58625.0,0.085274]
[1723673398760,4.6e-07,58640.0,58625.0,0.085274]
[1723673398974,0.02000046,58640.0,58639.0,0.085254]
[1723673399375,0.02000046,58640.0,58639.0,0.235254]
[1723673399684,0.085227,58658.0,58639.0,0.235254]
[1723673399854,0.085229,58657.0,58654.0,0.3608]
[1723673400058,0.235229,58657.0,58654.0,0.3608]
[1723673400362,0.15,58657.0,58654.0,0.3608]
[1723673400663,0.15,58657.0,58656.0,0.085229]
[1723673401067,0.15,58657.0,58654.0,0.3608]
[1723673401068,0.085231,58655.0,58654.0,0.3608]
[1723673401264,0.14,58655.0,58654.0,0.3608]
[1723673401566,0.14,58655.0,58654.0,0.446032]
[1723673402169,0.14,58655.0,58630.0,0.3608]
[1723673402170,0.170468,58653.0,58630.0,0.3608]
[1723673402365,0.3608,58634.0,58633.0,0.085263]
[1723673402561,0.3608,58634.0,58629.0,0.00016232]
[1723673402562,0.085264,58633.0,58629.0,0.00016232]
[1723673402871,0.16,58633.0,58629.0,0.14016232]
[1723673403055,0.16,58633.0,58631.0,0.085264]
[1723673403260,0.16,58633.0,58632.0,0.085264]
[1723673403567,0.16,58633.0,58629.0,0.00016232]
[1723673403768,0.085267,58630.0,58629.0,0.08543132]
[1723673403966,0.09,58630.0,58629.0,0.08543132]
[1723673404967,0.175267,58630.0,58629.0,0.08543132]
[1723673405173,0.434367,58630.0,58629.0,0.00116232]
[1723673405565,0.3491,58630.0,58629.0,0.00116232]
[1723673405765,0.001,58630.0,58629.0,0.00116232]
[1723673406261,0.091,58630.0,58629.0,0.08643132]
[1723673406575,0.081,58630.0,58629.0,0.08643132]
[1723673407672,0.3608,58642.0,58629.0,0.66184232]
[1723673407979,0.3608,58649.0,58635.0,0.3608]
[1723673408275,0.3608,58649.0,58648.0,0.085241]
[1723673408575,0.5108,58649.0,58648.0,0.245241]
[1723673408966,0.5108,58649.0,58648.0,0.085241]
[1723673409676,0.596039,58649.0,58648.0,0.085241]
[1723673409864,0.085242,58648.0,58643.0,0.00025586]
[1723673410064,0.3608,58644.0,58643.0,0.00025586]
[1723673410362,0.606047,58644.0,58643.0,0.00025586]
[1723673410976,0.00025586,58654.0,58643.0,0.65181586]
[1723673411189,0.001,58648.0,58647.0,0.085242]
[1723673411478,0.001,58648.0,58647.0,0.225242]
[1723673411672,0.001,58648.0,58647.0,1.222004]
[1723673411872,0.00025586,58654.0,58653.0,0.085234]
[1723673412176,0.00025586,58654.0,58653.0,0.655234]
[1723673412378,0.00025586,58654.0,58653.0,1.166714]
[1723673412576,0.3608,58670.0,58669.0,0.085209]
[1723673412766,0.5108,58670.0,58669.0,0.085209]
[1723673413763,0.5248,58670.0,58665.0,0.085216]
[1723673413967,0.5248,58670.0,58664.0,0.06798421]
[1723673413968,0.085215,58667.0,58664.0,0.06798421]
[1723673414168,0.3608,58665.0,58664.0,0.15320221]
[1723673414371,0.5308,58665.0,58664.0,0.15320221]
[1723673416280,0.5398,58665.0,58664.0,0.15320221]
[1723673417269,0.625016,58665.0,58664.0,0.15320221]
[1723673417473,0.625016,58665.0,58664.0,0.00025586]
[1723673418774,0.625016,58665.0,58664.0,0.08547386]
[1723673419171,0.5398,58665.0,58664.0,0.08547386]
[1723673420279,0.179,58665.0,58664.0,0.23547386]
[1723673420480,0.17360389,58665.0,58664.0,1.67810986]
[1723673420676,0.17360389,58665.0,58664.0,1.59289186]
[1723673420875,0.00025586,58675.0,58674.0,0.170406]
[1723673421077,0.00025586,58675.0,58674.0,0.320406]
[1723673421279,0.00025586,58675.0,58674.0,1.231686]
[1723673421784,0.00025586,58675.0,58674.0,1.677689]
[1723673423080,0.00025586,58675.0,58674.0,0.596003]
[1723673423492,0.00025586,58675.0,58674.0,0.235203]
[1723673423879,0.00025586,58675.0,58674.0,1.146483]
[1723673424184,0.00025586,58675.0,58674.0,0.235203]
[1723673424989,0.00125586,58675.0,58674.0,0.244203]
[1723673425389,0.085171,58697.0,58675.0,0.51128]